bitfinex/quotes_ETHUSD_20250903
["timestamp","ask_amount","ask_price","bid_price","bid_amount"]
[1756864489401,0.001,4307.9,4307.8,22.90705372]
[1756864489589,0.001,4307.9,4307.8,23.38225372]
[1756864491702,0.001,4307.9,4307.8,23.38237316]
[1756864493801,0.001,4307.9,4307.8,22.45427316]
[1756864494427,0.001,4307.9,4307.8,22.90717316]
[1756864494918,0.001,4307.9,4307.8,23.38237316]
[1756864497226,1e-08,4307.9,4307.8,27.62237316]
[1756864497388,0.001,4308.4,4308.3,3.11310113]
[1756864497588,0.001,4308.4,4308.3,12.43469086]
[1756864497790,0.001,4308.4,4308.3,13.79189086]
[1756864498124,0.001,4308.4,4308.3,24.89189086]
[1756864498486,0.001,4308.4,4308.3,30.00389086]
[1756864498683,0.001,4308.4,4308.3,30.00368052]
[1756864499135,0.02,4308.8,4308.7,3.11288564]
[1756864499295,0.02,4308.8,4308.7,10.50782319]
[1756864499508,0.02,4308.8,4308.7,11.82931434]
[1756864500821,0.02,4308.8,4308.7,6.97431434]
[1756864501025,0.02,4308.8,4308.7,11.82831434]
[1756864501409,0.02,4308.9,4308.8,6.11283178]
[1756864501708,1e-08,4308.9,4308.8,18.35978282]
[1756864501939,1e-08,4308.9,4308.8,19.31712407]
[1756864502731,1e-08,4308.9,4308.8,19.43312407]
[1756864506066,0.30540001,4308.9,4308.8,21.21742407]
[1756864506357,1e-08,4308.9,4308.8,23.23812407]
[1756864510373,0.02,4309.9,4309.7,3.11234712]
[1756864510672,1e-08,4309.9,4309.8,6.11229328]
[1756864510864,1e-08,4309.9,4309.8,7.55794432]
[1756864511018,0.02,4311.8,4310.2,0.792]
[1756864511019,0.2632,4311.7,4310.2,0.792]
[1756864511224,0.2632,4311.7,4310.7,6.11180884]
[1756864511463,0.02,4311.8,4310.7,12.58632141]
[1756864511632,0.02,4311.8,4310.7,13.51632141]
[1756864511836,0.02,4311.8,4310.7,24.70924472]
[1756864512363,0.302,4311.7,4310.7,23.48254472]
[1756864512770,0.02,4311.8,4310.7,24.71124472]
[1756864514501,1e-08,4310.9,4310.8,6.11175503]
[1756864514782,1e-08,4310.9,4310.8,7.91597485]
[1756864514957,1e-08,4310.9,4310.8,11.84097485]
[1756864515162,1e-08,4310.9,4310.8,23.23967485]
[1756864516086,1e-08,4310.9,4310.8,23.35567485]
[1756864516391,1e-08,4310.9,4310.8,19.43067485]
[1756864516547,1e-08,4310.9,4310.8,23.35567485]
[1756864517066,1e-08,4310.9,4310.8,19.43067485]
[1756864517286,1e-08,4310.9,4310.8,23.35567485]
[1756864519562,1e-08,4310.9,4310.8,19.43067485]
[1756864519769,1e-08,4310.9,4310.8,23.35567485]
[1756864519965,1e-08,4310.9,4310.8,23.35467485]
[1756864521005,1e-08,4310.9,4310.8,18.50067485]
[1756864521205,0.09900001,4310.9,4310.8,17.40997485]
[1756864521356,0.09900001,4310.9,4310.8,21.33397485]
[1756864521696,0.09900001,4310.9,4310.8,11.43157857]
[1756864521999,1e-08,4310.9,4310.8,21.4673336]
[1756864522154,0.09900001,4310.9,4310.8,20.6753336]
[1756864522355,0.09900001,4310.9,4310.8,21.4673336]
[1756864523087,0.09900001,4310.9,4310.8,17.5433336]
[1756864523248,0.09900001,4310.9,4310.8,19.14757857]
[1756864523452,0.09900001,4310.9,4310.8,11.43157857]
[1756864523453,0.66220001,4310.9,4310.8,11.43157857]
[1756864523662,0.66220001,4310.9,4310.8,15.35657857]
[1756864523865,0.66220001,4310.9,4310.8,14.43157857]
[1756864524070,0.66220001,4310.9,4310.8,15.35757857]
[1756864524486,0.66220001,4310.9,4310.8,8.04957857]
[1756864524689,0.09900001,4310.9,4310.8,8.04957857]
[1756864524861,1e-08,4310.9,4310.8,11.35479984]
[1756864525193,1e-08,4310.9,4310.8,22.45479984]
[1756864527691,1e-08,4310.9,4310.8,23.56749984]
[1756864528660,1e-08,4310.9,4310.8,19.64149984]
[1756864528997,1e-08,4310.9,4310.8,23.57149984]
[1756864529690,1e-08,4310.9,4310.8,19.17339984]
[1756864529897,0.09900001,4310.9,4310.8,21.3573336]
[1756864530107,1e-08,4310.9,4310.8,22.1395336]
[1756864530278,1e-08,4310.9,4310.8,22.5723336]
[1756864531557,1e-08,4310.9,4310.8,38.8580024]
[1756864532583,0.02,4311.8,4311.7,3.11127082]
[1756864532760,0.02,4311.8,4311.7,11.89384939]
[1756864532965,0.02,4311.8,4311.7,12.20754939]
[1756864533193,0.02,4311.8,4311.7,23.59074939]
[1756864533397,0.02,4311.8,4311.7,23.27704939]
[1756864533707,0.119,4311.8,4311.7,22.99384939]
[1756864535479,0.119,4311.8,4311.7,22.99184939]
[1756864536969,0.419,4311.8,4311.7,22.99184939]
[1756864537183,0.119,4311.8,4311.7,22.99184939]
[1756864538171,0.119,4311.8,4311.7,23.10784939]
[1756864542108,0.6822,4311.8,4311.7,1.96557857]
[1756864542409,0.6822,4311.8,4311.7,5.89257857]
[1756864543397,0.02,4311.8,4311.7,12.82503933]
[1756864543578,0.02,4311.8,4311.7,24.23873933]
[1756864543777,0.02,4311.8,4311.7,23.92503933]
[1756864543978,0.3308,4311.8,4311.7,23.10384939]
[1756864544307,0.02,4311.8,4311.7,23.10384939]
[1756864544683,0.02,4311.8,4311.7,23.41754939]
[1756864545126,0.02,4311.8,4311.7,23.41833405]
[1756864545323,0.02,4311.8,4311.7,24.31963405]
[1756864546426,0.02,4312.8,4312.7,6.11073304]
[1756864546605,0.02,4312.8,4312.7,11.89309627]
[1756864546812,0.02,4312.8,4312.7,12.75559627]
[1756864547121,0.02,4312.8,4312.7,23.85542799]
[1756864547511,0.2632,4314.6,4313.7,3.11019551]
[1756864547693,0.2632,4314.2,4313.7,11.89339046]
[1756864547901,0.439,4313.8,4313.7,12.00939046]
[1756864548097,0.139,4313.8,4313.7,12.00939046]
[1756864548507,0.04,4313.8,4313.7,12.00939046]
[1756864548832,0.04,4313.8,4313.7,12.18435146]
[1756864549565,0.04,4313.8,4313.7,11.96815651]
[1756864549887,0.04,4313.8,4313.7,12.18376026]
[1756864552007,0.04,4313.8,4313.7,23.28376026]
[1756864552714,0.04,4313.8,4313.7,23.59746026]
[1756864552915,0.04,4313.8,4313.7,24.49876026]
[1756864554004,0.04,4313.8,4313.7,23.59746026]
[1756864554436,0.04,4313.8,4313.7,24.49876026]
[1756864554938,0.04,4313.8,4313.7,24.03026026]
[1756864555143,0.04,4313.8,4313.7,23.28376026]
[1756864555739,0.139,4313.8,4313.7,19.35076026]
[1756864555926,0.139,4313.8,4313.7,23.27776026]
[1756864556345,0.04,4313.8,4313.7,23.27776026]
[1756864557022,0.04,4313.8,4313.7,24.05996026]
[1756864557221,0.04,4313.8,4313.7,24.49276026]
[1756864557418,0.04,4313.8,4313.7,23.27776026]
[1756864557610,0.139,4313.8,4313.7,23.27776026]
[1756864557814,0.04,4313.8,4313.7,24.05996026]
[1756864558028,0.04,4313.8,4313.7,24.49276026]
[1756864560442,0.04,4313.8,4313.7,23.27276026]
[1756864560443,0.139,4313.8,4313.7,23.27276026]
[1756864562422,0.139,4313.8,4313.7,23.27239292]
[1756864562622,0.139,4313.8,4313.7,4.96523641]
[1756864562814,0.7022,4313.8,4313.7,11.20443192]
[1756864563012,0.4022,4313.8,4313.7,5.88623641]
[1756864563216,0.7022,4313.8,4313.7,5.88623641]
[1756864563426,0.7022,4313.8,4313.7,5.77123641]
[1756864563721,1.00622268,4313.8,4313.7,5.77123641]
[1756864563923,0.7022,4313.8,4313.7,5.77123641]
[1756864564128,0.7022,4313.8,4313.7,5.88723641]
[1756864565122,0.7022,4313.8,4313.7,1.96523641]
[1756864565317,0.7022,4313.8,4313.7,5.77223641]
[1756864565745,3.02034177,4313.8,4313.7,1.84923641]
[1756864565942,3.359113,4313.8,4313.7,0.21523641]
[1756864566142,2.31819551,4313.7,4313.6,3.923]
[1756864566322,2.31819551,4313.7,4313.5,3.923]
[1756864566323,3.11955045,4313.7,4313.5,3.923]
[1756864566529,3.11955045,4313.7,4313.0,0.116]
[1756864566530,2.31847561,4313.2,4313.1,0.21553615]
[1756864566734,2.65332317,4313.2,4313.1,4.13853615]
[1756864566931,0.89404756,4313.2,4313.1,4.13853615]
[1756864567155,0.6622,4313.2,4313.1,4.13853615]
[1756864567666,0.6622,4313.2,4313.1,0.21553615]
[1756864567852,2.98066424,4313.2,4313.1,0.21553615]
[1756864568049,0.6622,4313.2,4313.1,0.21553615]
[1756864568570,2.98066424,4313.2,4313.1,0.21553615]
[1756864568748,3.54761881,4313.2,4313.1,0.21553615]
[1756864569120,3.52548176,4313.2,4313.1,0.21553615]
[1756864569356,2.31857175,4313.0,4312.8,0.02]
[1756864569571,0.5592,4313.1,4312.9,0.21563439]
[1756864569733,0.412,4313.1,4313.0,0.21563439]
[1756864569934,0.7801,4313.1,4313.0,0.21563439]
[1756864572931,0.7801,4313.1,4313.0,0.16563439]
[1756864574355,0.5169,4313.1,4313.0,0.16563439]
[1756864574577,0.2209,4313.1,4313.0,0.16563439]
[1756864574944,0.2209,4313.1,4313.0,4.08663439]
[1756864574945,0.4272,4313.1,4313.0,4.08663439]
[1756864575155,0.116,4313.1,4313.0,6.40520614]
[1756864575464,0.001,4313.2,4313.1,2.318518]
[1756864575663,0.001,4313.2,4313.1,5.18140318]
[1756864575855,0.001,4313.2,4313.1,6.31391831]
[1756864577331,0.001,4313.2,4313.1,5.158218]
[1756864577654,0.001,4313.2,4313.1,8.950218]
[1756864579542,1e-08,4313.2,4313.1,8.950218]
[1756864579759,1e-08,4313.2,4313.1,20.050218]
[1756864580037,1e-08,4313.2,4313.1,20.166218]
[1756864580369,1e-08,4313.2,4313.1,24.089218]
[1756864582744,1e-08,4313.2,4313.1,23.660318]
[1756864582940,0.09900001,4313.2,4313.1,7.068518]
[1756864583251,0.09900001,4313.2,4313.1,10.990518]
[1756864583448,1e-08,4313.2,4313.1,4.068518]
[1756864583646,0.09900001,4313.2,4313.1,5.672]
[1756864583874,0.09900001,4313.2,4313.1,7.990518]
[1756864584454,1e-08,4313.2,4313.1,8.709118]
[1756864584647,1e-08,4313.2,4313.1,9.080218]
[1756864584867,1e-08,4313.2,4313.1,9.41188183]
[1756864585374,1e-08,4313.2,4313.1,8.92478183]
[1756864585675,1e-08,4313.2,4313.1,8.20618183]
[1756864585975,0.09900001,4313.2,4313.1,4.28418183]
[1756864586173,1e-08,4313.2,4313.1,8.49788183]
[1756864586374,1e-08,4313.2,4313.1,10.49553014]
[1756864586561,1e-08,4313.2,4313.1,14.28753014]
[1756864589442,1e-08,4313.2,4313.1,25.38753014]
[1756864589778,1e-08,4313.2,4313.1,25.27153014]
[1756864589971,1e-08,4313.2,4313.1,25.38753014]
[1756864590476,0.04,4313.8,4313.7,3.11019551]
[1756864590679,0.04,4313.8,4313.7,10.71505829]
[1756864590976,0.04,4313.8,4313.7,11.97675829]
[1756864593288,0.116,4315.3,4313.7,11.97675829]
[1756864593289,0.116,4315.3,4314.8,2.31760452]
[1756864593492,0.116,4315.3,4314.8,11.88126835]
[1756864593687,0.02,4315.9,4314.8,12.19086835]
[1756864593980,0.02,4315.9,4314.8,13.14296835]
[1756864594680,0.02,4315.9,4314.8,14.22461666]
[1756864595464,0.02,4315.9,4314.8,13.76921666]
[1756864595790,0.119,4314.9,4314.8,7.95926835]
[1756864596093,0.119,4314.9,4314.8,11.88026835]
[1756864596264,0.02,4314.9,4314.8,12.64526835]
[1756864596466,0.02,4314.9,4314.8,13.14143313]
[1756864597054,0.02,4314.9,4314.8,12.64473313]
[1756864597255,0.02,4314.9,4314.8,11.87973313]
[1756864598067,0.02,4314.9,4314.8,7.95873313]
[1756864598274,0.02,4314.9,4314.8,11.87873313]
[1756864598475,0.02,4314.9,4314.8,8.26833313]
[1756864598791,0.02,4314.9,4314.8,12.18733313]
[1756864599194,0.02,4314.9,4314.8,11.87773313]
[1756864599563,0.02,4314.9,4314.8,7.95873313]
[1756864599765,0.119,4314.9,4314.8,7.16673313]
[1756864600093,0.119,4314.9,4314.8,5.76712861]
[1756864600399,0.419,4314.9,4314.8,5.76912861]
[1756864602110,0.6822,4314.9,4314.8,0.21512861]
[1756864602267,0.6822,4314.9,4314.3,1.633]
[1756864602462,2.31767911,4314.7,4314.4,4.13512861]
[1756864602707,0.5612,4314.6,4314.5,0.21512861]
[1756864602910,0.2937,4314.6,4314.5,0.21512861]
[1756864603075,0.6641,4314.6,4314.5,0.21512861]
[1756864603274,0.2937,4314.6,4314.5,0.21512861]
[1756864603481,0.2918,4314.6,4314.5,0.21512861]
[1756864603664,0.2918,4314.6,4314.5,0.33112861]
[1756864603992,0.4009,4314.6,4314.5,4.25212861]
[1756864604159,0.4009,4314.6,4314.5,4.13612861]
[1756864604363,0.96426546,4314.6,4314.5,4.13612861]
[1756864604564,3.30511446,4314.6,4314.5,0.21512861]
[1756864604797,2.31789701,4314.3,4313.9,3.921]
[1756864604985,0.30016546,4314.6,4314.0,0.41777637]
[1756864605163,2.90602737,4314.7,4314.1,0.21577637]
[1756864605361,0.02,4314.9,4314.2,4.17595563]
[1756864605577,0.02,4314.9,4314.3,0.21577637]
[1756864605900,0.021,4314.9,4314.5,0.792]
[1756864606197,0.021,4314.9,4314.6,4.15577637]
[1756864606398,0.021,4314.9,4314.8,2.31760452]
[1756864606701,0.021,4314.9,4314.8,8.10938089]
[1756864606896,0.021,4314.9,4314.8,9.37108089]
[1756864608098,0.021,4314.9,4314.8,13.16308089]
[1756864608303,0.021,4314.9,4314.8,9.22008089]
[1756864608519,0.021,4314.9,4314.8,13.16508089]
[1756864608880,0.021,4314.9,4314.8,7.47598089]
[1756864609228,0.021,4314.9,4314.8,11.42098089]
[1756864609931,0.021,4314.9,4314.8,11.11138089]
[1756864610230,0.021,4314.9,4314.8,7.16638089]
[1756864610382,0.021,4314.9,4314.8,11.11138089]
[1756864610925,0.021,4314.9,4314.8,12.39308089]
[1756864611106,0.021,4314.9,4314.8,7.18638089]
[1756864611512,0.021,4314.9,4314.8,11.13038089]
[1756864612006,0.12,4314.9,4314.8,1.86877637]
[1756864612178,0.12,4314.9,4314.8,5.81177637]
[1756864612385,0.021,4314.9,4314.8,8.12938089]
[1756864612580,0.021,4314.9,4314.8,9.28211898]
[1756864612786,0.021,4314.9,4314.8,14.02621898]
[1756864614708,0.021,4314.9,4314.8,14.14221898]
[1756864620027,0.021,4314.9,4314.8,14.13921898]
[1756864620410,0.021,4314.9,4314.8,14.13821898]
[1756864621492,0.02,4315.8,4315.7,2.3171212]
[1756864621692,0.02,4315.8,4315.7,19.32289757]
[1756864621901,0.02,4315.8,4315.7,20.55299757]
[1756864622133,0.119,4315.8,4315.7,19.32189757]
[1756864622300,0.119,4315.8,4315.7,15.38189757]
[1756864622499,0.119,4315.8,4315.7,19.32189757]
[1756864622702,0.119,4315.8,4315.7,8.22189757]
[1756864623199,0.02,4315.8,4315.7,8.22189757]
[1756864623412,0.119,4315.8,4315.7,1.96477637]
[1756864623617,0.6822,4315.8,4315.7,1.96477637]
[1756864623800,0.6822,4315.8,4315.7,5.90477637]
[1756864624001,0.6822,4315.8,4315.7,1.96477637]
[1756864624203,0.6822,4315.8,4315.7,5.90577637]
[1756864624426,0.98412106,4315.8,4315.7,5.78977637]
[1756864625242,3.30218857,4315.8,4315.7,1.84877637]
[1756864625421,3.30218857,4315.8,4315.7,5.78877637]
[1756864626211,0.12,4315.8,4315.7,4.15577637]
[1756864627210,0.12,4315.8,4315.7,4.15877637]
[1756864628836,0.021,4315.8,4315.7,6.47589757]
[1756864629519,0.021,4315.8,4315.7,6.47554185]
[1756864630618,0.122,4315.8,4315.7,4.15842065]
[1756864631046,0.122,4315.8,4315.7,4.15442065]
[1756864631235,0.122,4315.8,4315.7,0.21542065]
[1756864631548,0.122,4315.8,4315.7,4.15442065]
[1756864632647,0.122,4315.8,4315.7,6.47154185]
[1756864633018,0.021,4315.8,4315.7,4.15442065]
[1756864633351,0.021,4315.8,4315.7,6.47154185]
[1756864633549,0.021,4315.8,4315.7,7.20174185]
[1756864633926,0.12,4315.8,4315.7,4.15442065]
[1756864634435,0.12,4315.8,4315.7,0.21542065]
[1756864634637,0.12,4315.8,4315.7,4.15242065]
[1756864635155,0.12,4315.8,4315.7,0.21542065]
[1756864635357,0.39569179,4315.8,4315.7,4.15442065]
[1756864635648,0.69569179,4315.8,4315.7,4.15442065]
[1756864635852,0.42,4315.8,4315.7,4.15442065]
[1756864636554,0.12,4315.8,4315.7,4.15442065]
[1756864637873,0.021,4315.8,4315.7,4.15442065]
[1756864638024,0.021,4315.8,4315.7,4.27042065]
[1756864638222,0.021,4315.8,4315.7,6.87744185]
[1756864638762,0.021,4315.8,4315.7,7.81764185]
[1756864639185,0.021,4315.8,4315.7,4.26942065]
[1756864639472,0.021,4315.8,4315.7,4.55932065]
[1756864639703,0.021,4315.8,4315.7,7.31674185]
[1756864639842,0.021,4315.8,4315.7,7.81664185]
[1756864640042,0.021,4315.8,4315.7,16.18649017]
[1756864640569,0.021,4315.8,4315.7,8.83002682]
[1756864641759,0.021,4315.8,4315.7,19.93002682]
[1756864642837,0.021,4315.8,4315.7,15.99202682]
[1756864643171,0.021,4315.8,4315.7,19.92902682]
[1756864643663,0.021,4315.8,4315.7,18.507572]
[1756864643861,0.021,4315.8,4315.7,19.007472]
[1756864644732,0.02,4315.9,4315.7,22.799472]
[1756864644932,0.02,4316.8,4315.7,22.799472]
[1756864644933,0.001,4316.7,4316.5,0.792]
[1756864645134,0.001,4316.7,4316.6,13.12415874]
[1756864645370,0.001,4316.7,4316.6,31.58062209]
[1756864645531,0.001,4316.7,4316.6,31.6734195]
[1756864646558,0.02,4316.8,4316.7,2.31658442]
[1756864646767,0.02,4316.8,4316.7,4.26420507]
[1756864646936,0.02,4316.8,4316.7,4.55410507]
[1756864647137,0.02,4316.8,4316.7,15.65410507]
[1756864650027,0.02,4316.8,4316.7,19.60910507]
[1756864651316,0.02,4316.9,4316.7,19.60910507]
[1756864651317,1e-08,4316.9,4316.8,3.10853076]
[1756864651518,1e-08,4316.9,4316.8,23.52415115]
[1756864651717,1e-08,4316.9,4316.8,23.79928585]
[1756864651919,1e-08,4316.9,4316.8,34.89928585]
[1756864652680,1e-08,4316.9,4316.8,38.85228585]
[1756864654086,1e-08,4316.9,4316.8,21.82745141]
[1756864654317,1e-08,4316.9,4316.8,22.61945141]
[1756864655222,1e-08,4316.9,4316.8,22.73545141]
[1756864656585,0.02,4317.9,4317.7,3.10804789]
[1756864656785,0.02,4317.9,4317.7,12.02946854]
[1756864657228,0.02,4317.9,4317.7,23.52055347]
[1756864658210,0.02,4317.9,4317.7,24.46375347]
[1756864659340,1e-08,4317.9,4317.8,6.10799425]
[1756864659542,0.02,4318.8,4318.7,3.10751161]
[1756864659706,0.02,4318.8,4318.7,12.20923226]
[1756864659910,0.02,4318.8,4318.7,23.92223226]
[1756864660108,0.02,4319.9,4318.8,6.10745799]
[1756864660309,0.02,4319.9,4318.8,7.26607864]
[1756864660526,1e-08,4318.9,4318.8,7.56437864]
[1756864660809,1e-08,4318.9,4318.8,18.83489108]
[1756864661005,0.02,4319.9,4319.7,6.10697557]
[1756864661206,0.02,4319.9,4319.7,12.52009378]
[1756864661425,0.02,4319.9,4319.7,13.87759378]
[1756864661623,0.02,4319.9,4319.7,24.97759378]
[1756864661938,0.02,4319.9,4319.7,24.86159378]
[1756864662139,0.02,4319.9,4319.7,23.73609378]
[1756864662308,0.119,4319.8,4319.7,18.37839622]
[1756864662504,0.119,4319.8,4319.7,22.33439622]
[1756864662743,0.12,4319.8,4319.7,23.12639622]
[1756864662944,0.021,4319.8,4319.7,23.87089622]
[1756864663242,0.021,4319.8,4319.7,24.36789622]
[1756864663413,0.021,4319.8,4319.7,23.12739622]
[1756864663603,0.021,4319.8,4319.7,23.62208056]
[1756864663805,0.021,4319.8,4319.7,19.16808056]
[1756864664009,0.021,4319.8,4319.7,23.12408056]
[1756864664242,0.021,4319.8,4319.7,19.16808056]
[1756864664442,0.021,4319.8,4319.7,23.12308056]
[1756864664740,0.021,4319.8,4319.7,20.80810499]
[1756864664741,0.12,4319.8,4319.7,20.80810499]
[1756864664952,0.12,4319.8,4319.7,20.01610499]
[1756864665115,0.6832,4319.8,4319.7,20.02410499]
[1756864665314,0.12,4319.8,4319.7,20.02410499]
[1756864665551,0.021,4319.8,4319.7,21.11440499]
[1756864665757,0.021,4319.8,4319.7,40.606415]
[1756864665959,1e-08,4320.0,4319.9,6.10686839]
[1756864666159,1e-08,4320.0,4319.9,10.59027338]
[1756864666347,1e-08,4320.0,4319.9,11.53347338]
[1756864666657,1e-08,4320.0,4319.9,22.63347338]
[1756864666857,1e-08,4320.0,4319.9,34.89530782]
[1756864667032,1e-08,4320.0,4319.9,38.87030782]
[1756864667432,1e-08,4320.0,4319.9,34.89530782]
[1756864668057,1e-08,4320.0,4319.9,22.13947338]
[1756864668257,1e-08,4320.0,4319.9,22.63647338]
[1756864668467,0.09900001,4320.0,4319.9,16.62797338]
[1756864668626,1e-08,4320.0,4319.9,13.62797338]
[1756864668819,1e-08,4320.0,4319.9,20.60397338]
[1756864669463,0.09900001,4320.0,4319.9,11.31310499]
[1756864669829,0.39900001,4320.0,4319.9,15.28810499]
[1756864670033,0.09900001,4320.0,4319.9,15.28810499]
[1756864670629,0.09900001,4320.0,4319.9,4.88373861]
[1756864670857,0.09900001,4320.0,4319.9,4.67063362]
[1756864671163,0.66220001,4320.0,4319.9,4.88373861]
[1756864671358,0.66220001,4320.0,4319.9,4.67063362]
[1756864671748,0.66220001,4320.0,4319.8,0.21310499]
[1756864671924,0.09900001,4320.0,4319.9,3.973]
[1756864672124,0.34036615,4320.0,4319.9,3.973]
[1756864672561,0.90356615,4320.0,4319.9,3.973]
[1756864672761,0.66220001,4320.0,4319.9,3.973]
[1756864673854,0.66220001,4320.0,4319.8,0.21310499]
[1756864674057,0.3,4319.9,4319.7,1.632]
[1756864674268,0.36220001,4320.0,4319.8,3.971]
[1756864674269,1e-08,4320.0,4319.8,3.971]
[1756864674431,0.31,4319.9,4319.8,4.18410499]
[1756864675264,0.6643,4319.9,4319.8,4.18410499]
[1756864675464,0.6643,4319.9,4319.8,0.21310499]
[1756864675667,0.96221182,4319.9,4319.8,3.972]
[1756864675851,0.31,4319.9,4319.8,4.18510499]
[1756864676069,0.31,4319.9,4319.8,6.50002697]
[1756864676443,0.31,4319.9,4319.8,4.18510499]
[1756864676660,0.31,4319.9,4319.8,6.50002697]
[1756864676842,0.31,4319.9,4319.8,4.18510499]
[1756864677356,0.31,4319.9,4319.8,4.18710499]
[1756864677528,0.31,4319.9,4319.8,6.50202697]
[1756864677733,1e-08,4320.0,4319.9,2.31486839]
[1756864677929,1e-08,4320.0,4319.9,2.52797338]
[1756864678143,0.09900001,4320.0,4319.9,2.52797338]
[1756864678343,0.09900001,4320.0,4319.9,0.21310499]
[1756864678969,0.09900001,4320.0,4319.9,4.18710499]
[1756864680065,1e-08,4320.0,4319.9,4.18610499]
[1756864680271,0.09900001,4320.0,4319.9,4.18610499]
[1756864680496,0.09900001,4320.0,4319.9,4.18710499]
[1756864680666,0.66220001,4320.0,4319.9,4.18710499]
[1756864680987,0.39900001,4320.0,4319.9,4.18710499]
[1756864681199,0.09900001,4320.0,4319.9,4.18710499]
[1756864681363,0.09900001,4320.0,4319.9,6.50197338]
[1756864682087,0.09900001,4320.0,4319.9,4.18710499]
[1756864682088,0.10000001,4320.0,4319.9,4.18710499]
[1756864682789,0.10000001,4320.0,4319.9,6.50197338]
[1756864682955,0.00100001,4320.0,4319.9,6.50197338]
[1756864683154,0.00100001,4320.0,4319.9,6.79947338]
[1756864683355,0.00100001,4320.0,4319.9,7.70817338]
[1756864683594,0.00100001,4320.0,4319.9,8.61617338]
[1756864684056,0.00100001,4320.0,4319.9,11.61617338]
[1756864684499,1e-08,4320.0,4319.9,11.61617338]
[1756864687882,0.02,4320.8,4320.7,2.31443978]
[1756864688082,0.02,4320.8,4320.7,11.13254477]
[1756864688281,0.02,4320.8,4320.7,11.99724477]
[1756864688872,1e-08,4320.8,4320.7,13.24674477]
[1756864690187,1e-08,4320.9,4320.8,6.10638622]
[1756864690378,1e-08,4320.9,4320.8,7.22819121]
[1756864690576,1e-08,4320.9,4320.8,23.75952565]
[1756864692263,1e-08,4320.9,4320.8,23.87552565]
[1756864692997,0.04,4321.8,4321.7,3.10590425]
[1756864693299,0.04,4321.8,4321.7,11.92000924]
[1756864693300,1e-08,4321.8,4321.7,11.92000924]
[1756864693502,1e-08,4321.8,4321.7,13.24220924]
[1756864693802,1e-08,4321.9,4321.8,3.10585071]
[1756864694008,1e-08,4321.9,4321.8,4.2276557]
[1756864694296,1e-08,4321.9,4321.8,4.5251557]
[1756864694599,1e-08,4321.9,4321.8,7.5482942]
[1756864694800,1e-08,4321.9,4321.8,7.5251557]
[1756864696807,1e-08,4321.9,4321.8,7.70289854]
[1756864696970,1e-08,4321.9,4321.8,24.05273298]
[1756864697872,0.02,4322.8,4322.7,3.10536895]
[1756864698072,0.02,4322.8,4322.7,17.01547394]
[1756864698273,0.02,4322.8,4322.7,18.33767394]
[1756864699915,0.02,4322.8,4322.7,18.42933635]
[1756864700990,0.119,4322.8,4322.7,12.46213635]
[1756864701192,0.119,4322.8,4322.7,16.31213635]
[1756864701397,0.119,4322.8,4322.7,16.42813635]
[1756864701614,0.119,4322.8,4322.7,17.22013635]
[1756864702482,0.119,4322.8,4322.7,9.46213635]
[1756864702682,0.6822,4322.8,4322.7,7.1487674]
[1756864702906,0.6822,4322.8,4322.7,13.42813635]
[1756864703100,0.419,4322.8,4322.7,13.42813635]
[1756864703310,0.119,4322.8,4322.7,2.73490762]
[1756864703509,0.6822,4322.8,4322.7,5.80466241]
[1756864703713,0.3822,4322.8,4322.7,2.05153867]
[1756864703897,0.6822,4322.8,4322.7,5.80366241]
[1756864704099,0.6822,4322.8,4322.7,5.92487626]
[1756864704508,0.6822,4322.8,4322.7,1.95887626]
[1756864704509,0.98373557,4322.8,4322.7,1.95887626]
[1756864704704,3.32018806,4322.8,4322.7,5.596]
[1756864704916,0.98373557,4322.8,4322.7,5.596]
[1756864705418,0.6822,4322.8,4322.7,5.596]
[1756864705592,0.119,4322.8,4322.7,8.91447336]
[1756864705795,0.119,4322.8,4322.7,8.23847336]
[1756864707027,0.119,4322.8,4322.7,4.27247336]
[1756864707327,0.119,4322.8,4322.7,8.24247336]
[1756864707721,0.119,4322.8,4322.7,8.19247336]
[1756864708024,0.119,4322.8,4322.7,8.49247336]
[1756864708730,0.02,4322.8,4322.7,8.49247336]
[1756864709026,0.121,4322.8,4322.7,8.49247336]
[1756864709326,0.02,4322.8,4322.7,13.03807336]
[1756864709625,0.02,4322.8,4322.7,13.48917336]
[1756864710229,0.02,4322.8,4322.7,13.48923848]
[1756864710423,0.02,4322.8,4322.7,8.31453848]
[1756864710625,0.02,4322.8,4322.7,12.28253848]
[1756864711437,0.02,4322.8,4322.7,12.59333848]
[1756864711594,0.02,4322.8,4322.7,13.49853848]
[1756864711794,0.02,4322.8,4322.7,12.59133848]
[1756864711993,0.02,4322.8,4322.7,8.62533848]
[1756864712197,0.02,4322.8,4322.7,13.49853848]
[1756864712397,1e-08,4322.9,4322.8,2.31331544]
[1756864712719,1e-08,4322.9,4322.8,7.22568497]
[1756864713048,1e-08,4322.9,4322.8,7.53648497]
[1756864714125,1e-08,4322.9,4322.8,11.50148497]
[1756864715204,0.02,4323.9,4323.8,2.31278042]
[1756864715390,0.02,4323.9,4323.8,11.23494995]
[1756864715794,0.02,4324.8,4323.9,6.10472693]
[1756864715989,0.02,4324.8,4324.7,2.31229911]
[1756864716219,0.02,4324.8,4324.7,11.11946864]
[1756864716633,0.02,4324.8,4324.7,11.42146864]
[1756864717300,0.02,4324.8,4324.7,8.70056864]
[1756864717527,0.02,4324.8,4324.7,13.43046864]
[1756864718729,0.02,4324.8,4324.7,12.52326864]
[1756864718929,0.02,4324.8,4324.7,7.45746864]
[1756864719232,0.119,4324.8,4324.7,11.41846864]
[1756864719432,0.02,4325.8,4325.7,3.10376456]
[1756864719596,0.02,4325.8,4325.7,14.00593409]
[1756864719803,0.02,4325.8,4325.7,15.22393409]
[1756864720110,0.02,4325.8,4325.7,15.31653772]
[1756864720308,0.119,4325.8,4325.7,5.81016953]